[Event "68th RUS-ch Women Superfinal 2018"]
[Site "Satka"]
[Date "2018.09.01"]
[Round "7"]
[White "Tomilova, Elena"]
[Black "Gritsayeva, Oksana"]
[Result "1-0"]
[ECO "A04"]
[WhiteElo "2332"]
[BlackElo "2391"]
[Annotator "NA"]
[PlyCount "101"]
[EventDate "2018.08.25"]
[EventType "tourn"]
[EventCountry "RUS"]
[SourceTitle "playchess.com"]
[Source "ChessBase"]
[SourceQuality "1"]
[TimeControl "40/5400+30:1800+30"]

{[%evp 16,87,82,74,62,69,136,116,177,164,169,152,157,141,197,187,195,102,102,83,244,32767,502,381,32767,372,389,32767,222,204,193,154,32767,32767,222,32767,32767,32767,32767,158,133,123,148,150,145,150,32767,126,32767,115,32767,94,87,75,32767,32767,32767,128,183,32767,32767,32767,38,32767,181,182,32767,32767,32767,32767,216,357,408,441]} 1. Nf3 {[%emt 0:00:00]} c5 {[%emt 0:00:00]} 2. c4 {[%emt 0:00:00]} Nc6 {[%emt 0:00:10]} 3. Nc3 {[%emt 0:00:00]} g6 {[%emt 0:00:20]} 4. e3 {[%emt 0:00:53]} Bg7 {[%emt 0:01:07]} 5. d4 {[%emt 0:00:32]} d6 {[%emt 0:00:50]} 6. d5 {[%emt 0:00:44]} Ne5 {[%emt 0:01:15]} 7. Nxe5 {[%emt 0:00:35]} Bxe5 {[%emt 0:00:13]} 8. Bd3 {[%emt 0:01:49]} Bxc3+ {[%emt 0:06:58] A35: Englische Eröffnung (Symmetrische Variante)} 9. bxc3 {[%emt 0:00:06] LiveBook: 3 Games} e5 {[%emt 0:05:51]} 10. e4 {[%emt 0:05:28]} Qa5 $146 {[%emt 0:08:43]} (10... Nf6 $142) ({Vorgänger:} 10... Bd7 11. f4 Qc7 12. O-O f6 13. a4 O-O-O 14. fxe5 dxe5 15. a5 Kb8 16. Be3 {1-0 (26) Iturrizaga Bonelli,E (2605)-Popov,I (2582) Puerto Madryn 2009}) 11. O-O {[%emt 0:09:07]} Bd7 {[%emt 0:03:58]} 12. f4 {[%emt 0:04:15]} f6 {[%emt 0:04:42]} 13. fxe5 {[%emt 0:04:18]} dxe5 {[%emt 0:01:08]} 14. Rb1 {[%emt 0:01:06]} O-O-O {[%emt 0:03:33]} (14... Rb8 $16 15. Bg5 Qd8) 15. Rf2 {[%emt 0:04:09]} h5 {[%emt 0:04:37] [#]} 16. Rb3 {[%emt 0:21:13]} ({Don't take} 16. Qb3 $6 b6 $16) (16. Rfb2 $1 $18 {[%cal Rb2b7] has better winning chances.} b6 17. Qe1) 16... Qc7 {[%emt 0:10:36]} 17. Qf1 {[%emt 0:01:18]} Qd6 $2 {[%emt 0:02:19]} (17... Kb8 $16 {was necessary.}) 18. Be3 {[%emt 0:04:14]} Kc7 $2 {[%emt 0:03:22]} (18... Be8 {is a better chance.} 19. a4 Kb8) 19. a4 {[%emt 0:03:30]} b6 {[%emt 0:03:21] [#]} 20. a5 $1 {[%emt 0:02:22]} Rb8 {[%emt 0:00:34]} 21. Ra3 {[%emt 0:02:48]} Rh7 {[%emt 0:02:28]} 22. axb6+ {[%emt 0:00:41]} axb6 {[%emt 0:00:04]} 23. Qa1 {[%emt 0:02:26]} Ne7 {[%emt 0:01:33]} 24. Ra7+ {[%emt 0:05:08]} Rb7 {[%emt 0:01:11]} 25. Ra8 {[%emt 0:01:48]} Rb8 {[%emt 0:03:48]} 26. Ra6 {[%emt 0:02:19]} Rf7 {[%emt 0:04:16]} 27. Bc2 {[%emt 0:05:48]} (27. Rb2 $18) 27... Kd8 {[%emt 0:05:18]} 28. Bg5 {[%emt 0:02:13]} Be8 {[%emt 0:03:35]} 29. Qf1 {[%emt 0:01:12]} Ng8 {[%emt 0:01:02]} 30. Be3 {[%emt 0:03:13]} Ke7 {[%emt 0:03:45]} 31. h3 {[%emt 0:00:21]} Kf8 {[%emt 0:00:24]} 32. Qa1 {[%emt 0:00:23]} Ne7 {[%emt 0:01:38]} 33. Bd1 {[%emt 0:01:49]} Kg7 {[%emt 0:03:01]} 34. Ra7 {[%emt 0:02:04]} Nc8 {[%emt 0:01:12]} 35. Rxf7+ {[%emt 0:00:34]} Bxf7 {[%emt 0:00:22]} 36. g4 {[%emt 0:01:45]} Qe7 {[%emt 0:04:07]} 37. gxh5 {[%emt 0:01:59]} gxh5 {[%emt 0:00:38]} 38. Rg2+ {[%emt 0:00:16]} Kh7 $1 {[%emt 0:01:02]} 39. Qb2 {[%emt 0:00:50]} Nd6 {[%emt 0:00:43]} ({Better is} 39... Ra8 $14) 40. Bxc5 $1 {[%emt 0:00:00]} Qc7 {[%emt 0:00:00]} 41. Bxd6 {[%emt 0:03:57]} Qxd6 {[%emt 0:02:23]} 42. Kh2 {[%emt 0:04:38]} Bg6 {[%emt 0:04:26]} 43. Qf2 {[%emt 0:03:21]} Bxe4 {[%emt 0:03:26] [#]} 44. Rg1 $18 {[%emt 0:07:53]} Bg6 {[%emt 0:05:49]} 45. Qg3 {[%emt 0:03:17]} Rg8 {[%emt 0:03:47]} 46. Bc2 {[%emt 0:00:54]} Qc5 {[%emt 0:14:58]} 47. Bxg6+ {[%emt 0:00:28]} Kh6 {[%emt 0:00:05]} 48. d6 {[%emt 0:00:59]} Rg7 {[%emt 0:00:46]} 49. d7 {[%emt 0:00:52]} Rg8 {[%emt 0:02:39]} 50. Qh4 {[%emt 0:01:45]} e4 {[%emt 0:01:13]} 51. Qf4+ {[%emt 0:00:24]} 1-0

[Event "68th RUS-ch Women Superfinal 2018"]
[Site "Satka"]
[Date "2018.09.04"]
[Round "10"]
[White "Gunina, Valentina"]
[Black "Pogonina, Natalija"]
[Result "0-1"]
[ECO "A06"]
[WhiteElo "2528"]
[BlackElo "2469"]
[Annotator "RC"]
[PlyCount "180"]
[EventDate "2018.08.25"]
[EventType "tourn"]
[EventCountry "RUS"]
[SourceTitle "playchess.com"]
[Source "ChessBase"]
[SourceQuality "1"]
[TimeControl "40/5400+30:1800+30"]

1. Nf3 {[%emt 0:00:00]} d5 {[%emt 0:00:00]} 2. g3 {[%emt 0:00:00]} Bg4 {[%emt 0:02:50]} 3. Bg2 {[%emt 0:00:00]} c6 {[%emt 0:00:13]} 4. h3 {[%emt 0:00:47]} Bxf3 {[%emt 0:01:14]} 5. Bxf3 {[%emt 0:00:04]} Nf6 {[%emt 0:01:29]} 6. d4 {[%emt 0:00:24]} e6 {[%emt 0:04:21]} 7. O-O {[%emt 0:00:42]} Be7 {[%emt 0:00:37]} 8. Nd2 {[%emt 0:00:37]} O-O {[%emt 0:00:59]} 9. c4 {[%emt 0:00:40]} Nbd7 {[%emt 0:00:49]} 10. Bg2 {[%emt 0:00:34]} Re8 {[%emt 0:02:45]} 11. b3 {[%emt 0:01:32]} Bb4 {[%emt 0:15:04]} 12. Bb2 {[%emt 0:06:04]} Qa5 {[%emt 0:04:29]} 13. Nf3 {[%emt 0:04:02]} Bc3 {[%emt 0:06:08]} 14. Qc2 {[%emt 0:01:27]} Ne4 {[%emt 0:08:43]} 15. Rac1 {[%emt 0:00:20]} Bxb2 {[%emt 0:01:03]} 16. Qxb2 {[%emt 0:00:02]} Qd8 {[%emt 0:01:21]} 17. Rfd1 {[%emt 0:01:38]} Qe7 {[%emt 0:00:41]} 18. e3 {[%emt 0:01:38]} Rec8 {[%emt 0:03:24]} 19. Ne5 {[%emt 0:02:05]} Nxe5 {[%emt 0:04:43]} 20. dxe5 {[%emt 0:00:35]} Nc5 {[%emt 0:00:26]} 21. Rc2 {[%emt 0:08:23]} a5 {[%emt 0:02:45]} 22. Kh2 {[%emt 0:04:17]} h6 {[%emt 0:04:59]} 23. Qd4 {[%emt 0:13:01]} b6 {[%emt 0:05:24]} 24. Qf4 {[%emt 0:03:30]} Rf8 {[%emt 0:02:07]} 25. cxd5 {[%emt 0:11:53]} cxd5 {[%emt 0:01:21]} 26. Qd4 {[%emt 0:06:00]} Qb7 {[%emt 0:02:16]} 27. h4 {[%emt 0:06:33]} Rac8 {[%emt 0:00:53]} 28. Rdc1 {[%emt 0:00:29]} Rfd8 {[%emt 0:01:46]} 29. Bf1 {[%emt 0:07:58]} Qb8 {[%emt 0:02:02]} 30. Bb5 {[%emt 0:02:39]} Rc7 {[%emt 0:01:43]} 31. Qb2 {[%emt 0:00:59]} Rdc8 {[%emt 0:03:47]} 32. a3 {[%emt 0:00:14]} Qa7 {[%emt 0:04:30]} 33. b4 {[%emt 0:01:34]} Nd7 {[%emt 0:01:32]} 34. f4 {[%emt 0:02:55]} Rxc2+ {[%emt 0:03:06]} 35. Rxc2 {[%emt 0:00:01]} Rxc2+ {[%emt 0:00:59]} 36. Qxc2 {[%emt 0:00:01]} Nf8 {[%emt 0:00:52]} 37. Qb2 {[%emt 0:00:35]} axb4 {[%emt 0:02:28]} 38. axb4 {[%emt 0:00:01]} Ng6 {[%emt 0:01:05]} 39. h5 {[%emt 0:04:04]} Ne7 {[%emt 0:00:05]} 40. g4 {[%emt 0:00:00]} Qc7 {[%emt 0:00:00]} 41. Kg3 {[%emt 0:02:12]} Nc8 {[%emt 0:09:30]} 42. Kf2 {[%emt 0:02:57]} Kf8 {[%emt 0:03:13]} 43. Ke2 {[%emt 0:02:06]} Ke7 {[%emt 0:01:32]} 44. Kd2 {[%emt 0:00:54]} Na7 {[%emt 0:07:56]} 45. Bd3 {[%emt 0:01:58]} Nc6 {[%emt 0:00:47]} 46. Qc3 {[%emt 0:01:39]} Qb7 {[%emt 0:02:31]} 47. Bc2 {[%emt 0:02:42]} Nb8 {[%emt 0:01:51]} 48. Qa1 {[%emt 0:01:45]} Qa6 {[%emt 0:01:47]} 49. Qc3 {[%emt 0:01:45]} Kd8 {[%emt 0:00:25]} 50. e4 {[%emt 0:05:38]} dxe4 {[%emt 0:04:23]} 51. Bxe4 {[%emt 0:00:03]} Qb5 {[%emt 0:00:24]} 52. g5 {[%emt 0:03:18]} Na6 {[%emt 0:01:56]} 53. Bd3 {[%emt 0:01:54]} Qd5 {[%emt 0:00:04]} 54. f5 {[%emt 0:02:40]} Nc7 {[%emt 0:00:50]} 55. g6 {[%emt 0:02:25]} exf5 {[%emt 0:01:04]} 56. gxf7 {[%emt 0:00:26]} Qxf7 {[%emt 0:00:21]} 57. Bc4 {[%emt 0:02:14]} Qd7+ {[%emt 0:00:26]} 58. Kc1 {[%emt 0:00:53]} f4 {[%emt 0:00:20]} 59. Bb3 {[%emt 0:00:37]} Ke7 {[%emt 0:01:11]} 60. Qc4 {[%emt 0:02:43]} Ne6 {[%emt 0:00:16]} 61. Qe4 {[%emt 0:00:01]} b5 {[%emt 0:01:52]} 62. Kb1 {[%emt 0:02:28]} Qd4 {[%emt 0:01:09]} 63. Qb7+ {[%emt 0:01:20]} Qd7 {[%emt 0:00:04]} 64. Qa8 {[%emt 0:02:03]} Qd3+ {[%emt 0:00:42]} 65. Bc2 {[%emt 0:00:01]} Qc4 {[%emt 0:01:29]} 66. Qb7+ {[%emt 0:03:58]} Nc7 {[%emt 0:00:05]} 67. Kc1 {[%emt 0:00:04]} Qf1+ {[%emt 0:01:17]} 68. Kb2 {[%emt 0:00:01]} Qc4 {[%emt 0:00:14]} 69. Qa7 {[%emt 0:04:19]} Qxb4+ {[%emt 0:00:58]} 70. Ka2 {[%emt 0:00:03]} Qc3 {[%emt 0:00:21]} 71. Bb3 {[%emt 0:00:48]} Qxe5 {[%emt 0:00:09]} 72. Qa3+ {[%emt 0:00:13]} Kf6 {[%emt 0:01:10]} 73. Qf8+ {[%emt 0:00:38]} Kg5 {[%emt 0:00:03]} 74. Qf7 {[%emt 0:00:53]} Kh4 {[%emt 0:00:38]} 75. Qg6 {[%emt 0:00:48]} b4 {[%emt 0:00:35]} 76. Qg2 {[%emt 0:00:39]} Qa5+ {[%emt 0:00:44]} 77. Kb1 {[%emt 0:00:10]} Qf5+ {[%emt 0:00:16]} 78. Bc2 {[%emt 0:00:04]} Qg4 {[%emt 0:00:27]} 79. Qf2+ {[%emt 0:00:53]} Qg3 {[%emt 0:00:11]} 80. Qd4 {[%emt 0:00:43]} Qe1+ {[%emt 0:00:31]} 81. Ka2 {[%emt 0:00:38]} Ne6 {[%emt 0:00:13]} 82. Qd5 {[%emt 0:00:27]} Qe2 {[%emt 0:00:41]} 83. Kb1 {[%emt 0:00:22]} Qe3 {[%emt 0:00:51]} 84. Bb3 {[%emt 0:00:44]} Nd4 {[%emt 0:00:31]} 85. Bc4 {[%emt 0:00:29]} b3 {[%emt 0:00:37]} 86. Qd8+ {[%emt 0:00:28]} Kg3 {[%emt 0:00:11]} 87. Qc7 {[%emt 0:00:11]} Qe4+ {[%emt 0:00:52]} 88. Ka1 {[%emt 0:00:16]} Qa8+ {[%emt 0:00:40]} 89. Kb2 {[%emt 0:00:14]} Qa2+ {[%emt 0:00:12]} 90. Kc3 {[%emt 0:00:02]} Nb5+ {[%emt 0:00:10] Kd4} 0-1